bitfinex-derivatives/quotes_ETHF0:USTF0_20250810
["timestamp","ask_amount","ask_price","bid_price","bid_amount"]
[1754866486834,1.49411,4233.8,4233.7,1.5773]
[1754866486835,1.0218,4233.8,4233.7,1.5773]
[1754866487036,0.4723,4233.9,4233.8,0.9289]
[1754866487239,0.4723,4233.9,4233.8,1.5773]
[1754866487438,0.8982,4233.9,4233.8,1.5773]
[1754866487643,1.2538,4233.9,4233.8,1.5773]
[1754866488847,1.4941,4233.9,4233.8,1.5773]
[1754866490341,1.18061,4234.4,4233.8,1.5773]
[1754866490543,1.18061,4234.4,4233.1,34.019]
[1754866490544,0.47228,4234.0,4233.9,1.5773]
[1754866490745,1.75118,4234.0,4233.9,1.31]
[1754866490938,1.75118,4234.0,4233.9,1.1293]
[1754866491145,1.75118,4234.0,4233.9,1.5773]
[1754866492648,1.75118,4234.0,4233.9,0.5427]
[1754866492847,1.75123,4233.6,4233.5,1.5773]
[1754866493941,1.75123,4233.6,4233.5,1.1293]
[1754866494144,1.75123,4233.6,4233.5,1.5773]
[1754866494650,1.49413,4233.6,4233.5,1.5773]
[1754866496747,1.75123,4233.6,4233.5,1.5773]
[1754866496947,1.75123,4233.6,4233.5,1.1293]
[1754866497253,1.75123,4233.6,4233.5,0.7276]
[1754866497755,1.75123,4233.6,4233.5,0.5427]
[1754866497946,1.75123,4233.6,4233.5,0.271]
[1754866498649,0.4724,4232.9,4232.8,2.04971]
[1754866498853,0.4724,4232.9,4232.8,1.5773]
[1754866499054,0.1818,4233.0,4232.9,2.0497]
[1754866499453,0.4259,4233.2,4232.9,2.0497]
[1754866499651,1.25387,4233.2,4233.1,0.6373]
[1754866499847,1.25387,4233.2,4233.1,1.5773]
[1754866502059,0.47237,4233.3,4233.2,2.04967]
[1754866502962,0.47237,4233.3,4233.2,1.5773]
[1754866504162,0.82795,4233.4,4233.3,1.10966]
[1754866504363,1.25385,4233.4,4233.3,2.04966]
[1754866505359,0.1502,4234.2,4233.5,1.5773]
[1754866505563,0.5887,4234.1,4234.0,0.4318]
[1754866505856,0.82177,4234.1,4234.0,1.5429]
[1754866506056,0.82177,4234.1,4233.9,0.47228]
[1754866506057,0.47225,4234.3,4234.1,2.01517]
[1754866506255,0.47225,4234.3,4234.2,1.3686]
[1754866506556,1.07505,4234.3,4234.2,1.5429]
[1754866506758,1.46375,4234.3,4234.2,1.5429]
[1754866510657,0.47224,4234.4,4234.3,1.5429]
[1754866510857,1.22454,4234.4,4234.3,1.5429]
[1754866512062,0.7523,4234.4,4234.3,1.5429]
[1754866512464,0.9915,4234.4,4234.3,1.5429]
[1754866520469,0.47223,4234.5,4234.3,1.5429]
[1754866520672,0.64631,4234.7,4234.6,0.6116]
[1754866520868,1.22451,4234.7,4234.6,1.5429]
[1754866521068,0.1741,4234.7,4234.6,1.5429]
[1754866521372,0.47216,4235.2,4235.0,2.01506]
[1754866521567,1.92161,4235.5,4235.4,0.6116]
[1754866521773,2.07111,4235.5,4235.4,1.5429]
[1754866522373,2.32441,4235.5,4235.4,1.5429]
[1754866522968,2.56361,4235.5,4235.4,1.5429]
[1754866523474,1.8523,4235.5,4235.4,2.01503]
[1754866523775,1.1,4235.5,4235.4,2.01503]
[1754866524370,1.5274,4235.5,4235.4,1.5429]
[1754866524570,1.1,4235.5,4235.4,1.5429]
[1754866525473,2.32441,4235.5,4235.4,1.5429]
[1754866527269,1.1,4235.5,4235.4,2.01502]
[1754866534583,1.852,4235.5,4235.4,1.5429]
[1754866534879,2.347,4235.5,4235.4,1.5429]
[1754866535573,1.2741,4235.5,4235.4,1.5429]
[1754866536176,1.5273,4235.5,4235.4,1.5429]
[1754866536380,1.8592,4235.5,4235.4,1.5429]
[1754866536771,2.0979,4235.5,4235.4,1.5429]
[1754866539879,1.009,4235.4,4235.3,1.77143]
[1754866540474,1.009,4235.4,4235.3,2.02873]
[1754866540674,0.7703,4235.4,4235.3,2.02873]
[1754866542073,1.1,4235.5,4235.4,1.3717]
[1754866542280,1.1,4235.5,4235.4,1.5566]
[1754866543278,1.8703,4235.5,4235.4,1.5566]
[1754866545983,1.5384,4235.5,4235.4,1.5566]
[1754866546575,1.6884,4235.5,4235.4,1.5566]
[1754866546772,1.8703,4235.5,4235.4,1.5566]
[1754866547386,1.5384,4235.5,4235.4,1.5566]
[1754866547682,1.2852,4235.5,4235.4,1.5566]
[1754866548071,1.1,4235.5,4235.4,1.5566]
[1754866550979,1.3532,4235.5,4235.4,1.5566]
[1754866551588,1.5032,4235.5,4235.4,1.5566]
[1754866554487,1.8703,4235.5,4235.4,1.5566]
[1754866560286,2.1098,4235.5,4235.4,1.5566]
[1754866560488,2.3666,4235.5,4235.4,1.18732]
[1754866560687,2.3666,4235.5,4235.4,1.57732]
[1754866560989,2.3666,4235.5,4235.4,2.02872]
[1754866562788,2.3666,4235.5,4235.4,1.18732]
[1754866563193,2.3666,4235.5,4235.4,0.7152]
[1754866563394,2.3666,4235.5,4235.4,0.2573]
[1754866564090,2.3666,4235.5,4235.4,0.9138]
[1754866564796,2.3666,4235.5,4235.4,1.5566]
[1754866573100,2.3666,4235.5,4235.4,2.02872]
[1754866573394,2.3666,4235.5,4235.4,0.9001]
[1754866573696,2.3666,4235.5,4235.4,1.5661]
[1754866574397,2.3666,4235.5,4235.4,0.9001]
[1754866575590,2.3666,4235.5,4235.4,1.3116]
[1754866576896,1.2799,4235.0,4234.9,0.7248]
[1754866577095,1.0225,4235.0,4234.9,1.5605]
[1754866577405,0.7814,4235.0,4234.9,1.5605]
[1754866579100,0.4562,4235.0,4234.9,1.5605]
[1754866579394,0.7814,4235.2,4235.1,1.0305]
[1754866579597,0.7814,4235.2,4235.1,1.5605]
[1754866580104,1.0225,4235.2,4235.1,1.5605]
[1754866581901,1.8814,4235.5,4235.4,2.03262]
[1754866583101,2.1225,4235.5,4235.4,1.5605]
[1754866587605,1.1,4235.5,4235.4,1.5605]
[1754866588009,1.7069,4235.5,4235.4,1.5605]
[1754866588204,1.8814,4235.5,4235.4,1.5605]
[1754866591406,1.2801,4235.5,4235.4,1.5605]
[1754866592300,1.7069,4235.5,4235.4,1.5605]
[1754866592508,1.8814,4235.5,4235.4,1.5605]
[1754866592907,2.1225,4235.5,4235.4,1.5605]
[1754866599814,1.1,4235.5,4235.4,1.5605]
[1754866600908,1.8699,4235.5,4235.4,1.5605]
[1754866606431,2.1098,4235.5,4235.4,1.5605]
[1754866610427,1.8699,4235.5,4235.4,1.5605]
[1754866610727,0.6784,4235.5,4235.4,7.5605]
[1754866610930,0.2568,4235.5,4235.4,7.5605]
[1754866611324,0.2568,4235.5,4235.4,1.5605]
[1754866611628,1.5295,4235.5,4235.4,1.5605]
[1754866611823,1.7864,4235.5,4235.4,1.5605]
[1754866612022,1.7864,4235.5,4235.4,0.8839]
[1754866612222,1.7864,4235.5,4234.8,2.10374888]
[1754866612223,0.47218,4235.0,4234.8,0.2712]
[1754866612424,0.6439,4235.2,4234.7,1.555]
[1754866612425,1.5296,4234.8,4234.7,1.555]
[1754866612827,1.2727,4234.8,4234.7,1.555]
[1754866613933,1.2727,4234.8,4234.7,2.02721]
[1754866615841,1.2727,4234.8,4234.7,1.555]
[1754866616131,1.5296,4234.8,4234.7,1.555]
[1754866617932,1.2727,4234.5,4234.4,1.00654]
[1754866618234,1.2727,4234.5,4234.4,2.02724]
[1754866623032,1.18022,4235.9,4234.8,2.0272]
[1754866623033,1.2727,4234.9,4234.8,2.0272]
[1754866623237,0.4499,4235.3,4235.2,0.892]
[1754866623433,1.2727,4235.3,4235.2,1.555]
[1754866623738,0.4499,4235.3,4235.2,1.555]
[1754866623939,1.0938,4235.3,4235.2,1.555]
[1754866624539,1.2727,4235.3,4235.2,1.555]
[1754866626836,1.74484,4235.3,4235.2,1.555]
[1754866627037,1.137,4234.7,4234.6,1.569]
[1754866627334,1.3203,4234.7,4234.6,1.569]
[1754866628539,1.5773,4234.7,4234.6,1.569]
[1754866629241,1.3203,4234.7,4234.6,1.569]
[1754866630639,0.2752,4235.2,4235.1,1.62266]
[1754866630839,0.9589,4235.2,4235.1,2.04116]
[1754866631040,1.3203,4235.2,4235.1,2.04116]
[1754866643544,1.5773,4235.2,4235.1,2.04116]
[1754866645948,1.3203,4235.2,4235.1,2.04116]
[1754866649655,1.5773,4235.2,4235.1,2.04116]
[1754866649955,1e-05,4235.5,4235.4,2.04113]
[1754866651051,0.867,4236.7,4236.6,0.171]
[1754866651252,0.4533,4236.7,4236.6,2.041]
[1754866651457,1.3203,4237.1,4237.0,2.04095]
[1754866652443,0.58916058,4238.0,4237.0,1.569]
[1754866652648,1.5773,4238.0,4237.9,1.35635]
[1754866652850,0.2752,4238.0,4237.9,1.62235]
[1754866653145,1.0394,4238.3,4238.2,1.09252]
[1754866653351,1.3203,4238.3,4238.2,2.04082]
[1754866653853,1.5773,4238.3,4238.2,2.04082]
[1754866654647,1.3203,4238.3,4238.2,2.04082]
[1754866657652,1.5736,4238.3,4238.2,2.04082]
[1754866657952,0.4241,4238.6,4238.5,2.03469]
[1754866658159,1.0195,4238.9,4238.8,1.09295]
[1754866658353,1.2822,4238.9,4238.8,2.03465]
[1754866660956,2.1195,4239.5,4239.4,0.74029]
[1754866661152,2.3822,4239.5,4239.4,2.03459]
[1754866661549,1.5241,4239.5,4239.4,2.03459]
[1754866661853,1.938,4239.5,4239.4,2.03459]
[1754866662053,1.3557,4239.5,4239.4,2.03459]
[1754866662252,0.23496849,4242.7,4242.4,0.47134]
[1754866662458,0.23496849,4242.7,4242.6,0.2686]
[1754866662650,0.23496849,4242.7,4241.0,33.989]
[1754866662651,0.6766,4242.2,4241.1,0.2686]
[1754866662846,0.6766,4241.9,4241.3,0.2686]
[1754866663052,0.4241,4241.9,4241.8,0.47141]
[1754866663264,1.2822,4241.9,4241.8,0.2686]
[1754866663555,1.2822,4241.9,4241.8,0.4416]
[1754866663748,1.5355,4241.9,4241.8,0.4416]
[1754866664153,0.6766,4242.6,4241.8,0.2686]
[1754866664359,1.2822,4241.9,4241.8,0.8681]
[1754866664553,1.2822,4241.9,4241.8,1.33952]
[1754866664755,1.1007,4241.9,4241.8,1.33952]
[1754866664949,0.6766,4242.7,4242.3,0.47136]
[1754866665155,33.979,4245.0,4242.7,0.2686]
[1754866665351,1.2822,4243.4,4243.3,0.64424]
[1754866665565,1.2822,4243.4,4243.3,0.5995]
[1754866665867,1.2822,4243.4,4243.2,0.47126]
[1754866666160,1.1,4243.5,4243.4,0.2686]
[1754866666461,1.1,4243.5,4243.4,0.8681]
[1754866666664,1.7056,4243.5,4243.4,0.6117]
[1754866666955,1.7056,4243.5,4243.2,0.47126]
[1754866666956,0.4241,4243.3,4243.2,1.33936]
[1754866667567,1.2822,4243.3,4243.2,1.33936]
[1754866667859,1.3557,4243.5,4243.2,0.81436]
[1754866668163,2.2007,4243.5,4243.4,0.8681]
[1754866668362,2.3822,4243.5,4243.4,0.8681]
[1754866668566,2.3822,4243.5,4243.4,0.6117]
[1754866668757,2.3822,4243.5,4243.4,0.4416]
[1754866669762,2.3822,4243.5,4243.4,0.6117]
[1754866670460,2.3822,4243.5,4243.4,0.4416]
[1754866670461,2.6355,4243.5,4243.4,0.4416]
[1754866670660,1.5355,4243.2,4243.1,0.47126]
[1754866671364,0.6056,4243.2,4242.9,0.47129]
[1754866671553,1.5355,4243.0,4242.9,0.73989]
[1754866671758,1.5355,4243.0,4242.9,0.91289]
[1754866672154,1.2822,4243.0,4242.9,1.33939]
[1754866672357,1.5355,4243.0,4242.9,0.73989]
[1754866672755,1.5355,4243.0,4242.9,0.91289]
[1754866672963,1.2822,4243.0,4242.9,1.08299]
[1754866673165,1.2822,4243.0,4242.9,1.33939]
[1754866674458,1.2822,4242.9,4242.8,0.47131]
[1754866674665,1.5355,4242.9,4242.8,0.47131]
[1754866675758,1.5355,4242.9,4242.8,0.91291]
[1754866681666,1.2822,4242.9,4242.8,0.91291]
[1754866681871,1.2822,4242.9,4242.8,1.33941]
[1754866683071,0.9299,4242.8,4241.2,4.71481]
[1754866683277,0.2533,4242.8,4241.1,0.58916058]
[1754866683476,1.2822,4242.6,4242.5,1.76564]
[1754866683674,1.2822,4242.6,4242.5,2.03424]
[1754866687269,1.5521,4242.5,4242.4,0.47134]
[1754866687674,1.5521,4242.5,4242.4,0.72564]
[1754866687876,1.5521,4242.5,4242.4,0.90104]
[1754866690366,1.5521,4242.5,4242.4,0.72564]
[1754866690575,1.5521,4242.5,4242.4,0.47134]
[1754866690776,0.6238,4242.5,4242.3,0.47136]
[1754866690977,2.02345,4242.4,4242.3,0.47136]
[1754866691170,1.5521,4242.4,4242.3,0.47136]
[1754866691370,2.81807356,4242.4,4242.3,0.47136]
[1754866691565,1.5521,4242.4,4242.3,0.47136]
[1754866691866,1.5521,4242.4,4242.3,0.72566]
[1754866692466,1.5521,4242.4,4242.3,0.90106]
[1754866693572,1.296,4242.4,4242.3,1.72476]
[1754866693772,1.296,4242.4,4242.3,1.99036]
[1754866693972,1.98773087,4242.4,4242.3,1.99036]
[1754866694465,0.7193,4242.4,4242.3,1.99036]
[1754866694677,1.26843087,4242.6,4242.5,0.47134]
[1754866694876,0.6238,4242.6,4242.5,1.99034]
[1754866695379,1.296,4242.6,4242.5,1.99034]
[1754866706483,0.7193,4242.6,4242.5,1.99034]
[1754866707584,0.1768,4242.8,4242.7,1.99032]
[1754866707780,0.2689,4243.0,4242.7,1.99032]
[1754866707781,1.1226,4242.9,4242.8,1.81491]
[1754866708081,1.1226,4242.9,4242.8,1.99031]
[1754866708383,2.396,4243.5,4243.4,1.99024]
[1754866709678,1.1,4243.5,4243.4,1.99024]
[1754866709882,2.396,4243.5,4243.4,0.72554]
[1754866710083,1.2768,4243.5,4243.4,1.72464]
[1754866710387,2.396,4243.5,4243.4,1.99024]
[1754866711285,1.1,4243.5,4243.4,1.99024]
[1754866715090,1.3689,4243.5,4243.4,1.99024]
[1754866715885,1.7784,4243.5,4243.4,1.99024]
[1754866716483,2.2267,4243.5,4243.4,1.99024]
[1754866717887,2.6563,4243.5,4243.4,0.47124]
[1754866718088,2.6563,4243.5,4243.1,1.17819]
[1754866718288,1.5512,4243.3,4243.2,0.47126]
[1754866718693,1.5512,4243.3,4243.2,0.73936]
[1754866720789,1.5512,4243.3,4243.2,0.47126]
[1754866720989,1.5512,4243.3,4243.2,0.19056]
[1754866723394,1.5512,4243.3,4243.2,0.45866]
[1754866725892,1.5512,4243.3,4243.2,0.63286]
[1754866726793,1.5512,4243.3,4243.2,1.70406]
[1754866726991,1.5512,4243.3,4243.2,0.63286]
[1754866727195,1.5512,4243.3,4243.2,1.06356]
[1754866727396,1.5512,4243.3,4243.2,1.70406]
[1754866730192,1.5512,4243.3,4243.2,1.05656]
[1754866730193,0.4458,4243.3,4243.2,1.05656]
[1754866730401,1.1,4243.5,4243.4,1.98474]
[1754866730789,0.62455,4243.5,4243.4,1.9788402]
[1754866730996,0.0647,4243.5,4243.4,1.9788402]
[1754866731404,1.2951,4244.2,4244.1,1.06906]
[1754866731694,1.2951,4244.2,4244.1,1.98466]
[1754866732196,1.5512,4244.2,4244.1,1.59836]
[1754866732597,1.2951,4244.2,4244.1,1.98466]
[1754866734096,1.86564565,4245.3,4245.2,1.17454]
[1754866734297,0.8856,4245.9,4245.8,1.08277]
[1754866734494,1.2951,4245.9,4245.8,1.98447]
[1754866734699,1.5512,4245.9,4245.8,1.98447]
[1754866734900,1.2951,4245.9,4245.8,1.98447]
[1754866735298,0.4095,4246.1,4245.8,0.89937]
[1754866735504,1.5512,4246.5,4246.4,0.47091]
[1754866736003,1.5512,4246.5,4246.4,0.73901]
[1754866736205,1.2951,4246.5,4246.4,0.5979]
[1754866736394,1.2951,4246.5,4246.4,1.98441]
[1754866736599,1.5512,4246.5,4246.4,1.98441]
[1754866736799,1.2951,4246.5,4246.4,1.98441]
[1754866737198,1.5512,4246.5,4246.4,1.98441]
[1754866737802,1.2951,4246.5,4246.4,1.98441]
[1754866738007,1.5512,4246.5,4246.4,1.59811]
[1754866738705,1.5512,4246.5,4246.4,1.98441]
[1754866739397,0.57054565,4247.4,4247.2,0.47082]
[1754866739600,1.1,4247.5,4247.4,1.5135]
[1754866739804,0.41741,4247.5,4247.4,1.5135]
[1754866740102,1.0288,4248.4,4248.3,0.5979]
[1754866740310,1.2951,4248.4,4248.3,1.5135]
[1754866740899,0.56767106,4249.6,4247.9,0.47073]
[1754866740900,0.3478,4248.0,4247.9,0.47073]
[1754866741209,0.56767106,4249.5,4248.1,0.2681]
[1754866741210,0.2663,4249.1,4248.1,0.2681]
[1754866741409,1.17636,4249.7,4247.2,0.18940655]
[1754866741410,1.2951,4248.7,4248.6,1.59786]
[1754866741709,1.0288,4248.7,4248.6,1.98416]
[1754866741910,1.2951,4248.7,4248.6,1.98416]
[1754866742605,0.2715,4248.7,4248.6,1.98416]
[1754866742806,0.3478,4248.8,4248.3,0.2681]
[1754866743004,2.17991346,4249.5,4248.5,0.47067]
[1754866743210,1.2951,4248.2,4248.1,1.2454]
[1754866743405,1.2951,4248.2,4248.1,1.71612]
[1754866743710,1.2951,4248.2,4248.1,1.98422]
[1754866744010,1.0288,4248.2,4248.1,1.98422]
[1754866744214,1.2951,4248.2,4248.1,1.98422]
[1754866744708,1.0288,4248.2,4248.1,1.98422]
[1754866745109,1.2951,4248.5,4248.4,1.06859]
[1754866745412,1.17628,4250.0,4248.0,1.17683]
[1754866745413,0.1743,4248.8,4248.7,0.90825]
[1754866745604,0.1743,4248.8,4247.1,1.19034804]
[1754866745605,0.387,4248.8,4247.5,0.6603]
[1754866745811,1.541,4248.3,4248.2,0.6427]
[1754866746208,0.9003,4247.7,4247.6,0.47077]
[1754866746510,1.541,4247.7,4247.6,0.4337]
[1754866746706,0.9003,4247.1,4247.0,1.60614]
[1754866746906,0.9003,4247.1,4247.0,2.00474]
[1754866746907,1.2873,4247.1,4247.0,2.00474]
[1754866747112,1.0125,4247.1,4247.0,2.00474]
[1754866747512,0.4395,4247.1,4247.0,2.00474]
[1754866747712,0.265,4247.1,4247.0,2.00474]
[1754866748517,0.7143,4247.4,4247.3,1.29851]
[1754866748710,0.265,4247.4,4247.3,2.00471]
[1754866748911,1.0125,4247.4,4247.3,2.00471]
[1754866749714,0.265,4247.4,4247.3,2.00471]
[1754866750114,0.652,4247.4,4247.3,2.00471]
[1754866750510,0.265,4247.7,4247.6,1.5339]
[1754866750817,0.265,4247.7,4247.6,2.00467]
[1754866751010,0.265,4247.7,4247.2,1.17705]
[1754866751011,0.265,4248.0,4247.9,1.08544]
[1754866751317,1.26843087,4250.2,4248.5,0.47067]
[1754866751318,0.265,4248.6,4248.5,0.47067]
[1754866751617,1.541,4248.6,4248.5,0.64267]
[1754866751805,0.6255,4248.6,4247.8,0.2617]
[1754866752011,0.6618,4248.4,4247.9,0.6147]
[1754866752210,0.652,4248.6,4248.5,0.82827]
[1754866752412,1.2873,4248.6,4248.5,1.60597]
[1754866752720,1.0125,4248.6,4248.5,2.00457]
[1754866754115,1.2873,4248.6,4248.5,2.00457]
[1754866754705,0.6255,4248.6,4248.2,0.2617]
[1754866754909,0.47066,4248.7,4248.2,0.2617]
[1754866754910,1.541,4248.3,4248.2,0.73241]
[1754866755112,1.541,4248.3,4248.2,1.34711]
[1754866755317,1.2873,4248.3,4248.2,2.00461]
[1754866755805,0.9155,4250.3,4248.4,1.17672]
[1754866756005,0.2748,4250.4,4249.8,0.47052]
[1754866756211,0.6618,4250.5,4249.8,0.5206]
[1754866756411,0.8792,4250.0,4249.8,0.2617]
[1754866756611,0.451,4249.4,4249.3,0.2617]
[1754866756812,1.17651,4249.2,4246.9,1.17712]
[1754866757014,3.92,4250.4,4247.2,0.172]
[1754866757015,0.91031,4247.3,4247.2,0.172]
[1754866757217,0.4395,4247.3,4247.2,1.0894]
[1754866757419,0.4395,4247.3,4247.2,1.275]
[1754866757714,0.56470943,4248.7,4247.7,0.8323]
[1754866758019,1.1013,4247.7,4247.6,1.34717]
[1754866758219,0.4395,4247.7,4247.6,1.74577]
[1754866758515,1.1013,4247.7,4247.6,0.2617]
[1754866758818,0.91022,4248.1,4248.0,0.6147]
[1754866759018,1.57202,4248.1,4248.0,0.2617]
[1754866760019,1.57202,4248.1,4248.0,0.4337]
[1754866760318,1.1013,4248.1,4248.0,1.5339]
[1754866761021,1.1013,4248.4,4248.3,1.5339]
[1754866761318,1.1013,4248.4,4248.3,0.4337]
[1754866763421,1.6971198,4249.7,4249.2,0.4706]
[1754866763715,0.6618,4249.8,4249.7,1.5339]
[1754866763716,1.2873,4249.8,4249.7,1.5339]
[1754866766518,0.47051,4250.0,4249.4,0.2617]
[1754866766728,1.2873,4249.5,4249.4,0.4337]
[1754866766933,1.2873,4249.5,4249.4,0.90427]
[1754866767129,1.541,4249.5,4249.4,0.90427]
[1754866767428,1.541,4249.5,4248.4,1.17669]
[1754866767429,1.2873,4248.5,4248.4,0.47068]
[1754866767630,1.2873,4248.5,4248.4,1.34708]
[1754866767830,1.2873,4248.5,4248.4,1.74568]
[1754866768030,1.2873,4248.5,4248.4,2.00458]
[1754866770032,1.2873,4248.5,4248.4,1.5339]
[1754866771235,1.26843087,4249.1,4248.4,1.5339]
[1754866771236,1.2873,4249.5,4249.4,0.6147]
[1754866771426,1.2873,4249.5,4249.4,1.5339]
[1754866771622,1.2873,4249.5,4249.4,0.4337]
[1754866771827,0.6255,4248.6,4248.5,0.64267]
[1754866772027,2.01166,4248.6,4248.5,0.172]
[1754866772223,1.2873,4248.6,4248.5,1.74288]
[1754866772531,1.2873,4248.6,4248.5,2.00458]
[1754866773231,1.2873,4248.6,4248.5,1.34708]
[1754866774030,1.541,4248.6,4248.5,0.90438]
[1754866775332,1.2873,4248.6,4248.5,0.90438]
[1754866775531,1.2905,4249.1,4249.0,1.5776]
[1754866775926,10.11419,4250.4,4248.4,1.17672]
[1754866775927,1.4171198,4250.3,4248.4,2.35341]
[1754866776131,0.2772,4251.4,4249.7,1.00347346]
[1754866776431,0.9579,4251.4,4251.3,0.87157]
[1754866776622,0.9579,4251.4,4251.1,0.47038]
[1754866776828,0.6809,4251.3,4251.0,0.74699]
[1754866777138,0.47028,4252.1,4251.3,0.47036]
[1754866777338,0.47027,4252.2,4251.3,0.87156]
[1754866777525,0.4703,4251.9,4251.3,0.87156]
[1754866777728,0.6807,4251.1,4250.6,0.4012]
[1754866778032,0.9579,4251.4,4250.7,0.47043]
[1754866778232,0.5542,4251.2,4250.7,0.47043]
[1754866778431,1.57035,4251.5,4250.0,1.17628]
[1754866778432,0.9579,4251.1,4251.0,0.4704]
[1754866778729,1.1,4251.5,4250.9,0.4704]
[1754866779033,0.9579,4251.0,4250.9,0.8716]
[1754866779234,0.9579,4251.0,4250.9,1.1482]
[1754866779433,0.2772,4251.0,4250.9,1.6091]
[1754866780231,0.4598,4251.0,4250.9,1.6091]
[1754866780429,0.7368,4251.0,4250.9,1.6091]
[1754866780935,1.1584,4251.0,4250.9,1.6091]
[1754866781432,1.5621,4251.0,4250.9,1.1387]
[1754866781633,1.1,4251.5,4250.6,0.87164]
[1754866781634,0.6042,4250.7,4250.6,0.87164]
[1754866781827,0.9579,4250.6,4250.1,0.6778]
[1754866782030,0.4704,4251.0,4250.1,1.1387]
[1754866782031,1.5621,4250.2,4250.1,1.1387]
[1754866782233,1.5621,4250.1,4249.9,0.47052]
[1754866782435,0.2772,4251.3,4250.0,0.6778]
[1754866782633,0.6042,4251.1,4251.0,0.93129]
[1754866782832,1.5621,4251.1,4251.0,0.4609]
[1754866783041,0.6042,4250.9,4250.8,0.87162]
[1754866783236,1.5621,4250.9,4250.8,0.87162]
[1754866783538,1.5621,4250.9,4250.8,1.60912]
[1754866783734,1.00347346,4250.9,4249.6,1.45298]
[1754866783938,0.2772,4250.6,4250.5,0.6778]
[1754866784336,0.9579,4250.6,4250.5,0.6778]
[1754866784546,0.9579,4250.6,4250.5,0.4012]
[1754866785639,0.9579,4250.6,4250.4,0.47046]
[1754866785640,0.47039,4251.1,4250.4,0.47046]
[1754866785939,0.9579,4250.9,4250.4,0.47046]
[1754866786141,0.9579,4250.8,4250.4,0.47046]
[1754866786340,0.47041,4250.9,4250.4,0.47046]
[1754866786536,0.9579,4250.7,4250.4,0.47046]
[1754866786841,0.9579,4250.5,4250.4,0.47046]
[1754866787136,1.5621,4250.5,4250.4,0.47046]
[1754866787339,0.47041,4250.9,4250.1,0.2766]
[1754866787340,1.5621,4250.4,4250.3,0.47047]
[1754866789438,1.5621,4250.4,4250.3,1.33257]
[1754866789636,1.5621,4250.4,4250.3,1.60917]
[1754866789840,1.2851,4251.1,4251.0,0.47039]
[1754866790145,1.5621,4251.1,4251.0,1.33249]
[1754866790444,0.2772,4251.1,4251.0,1.60909]
[1754866790844,1.3772,4251.5,4251.4,1.1387]
[1754866791038,0.47767,4251.5,4251.4,0.6778]
[1754866791446,0.75487,4251.5,4251.4,0.6778]
[1754866793640,0.47767,4251.5,4251.4,0.6778]
[1754866794244,0.19767,4251.5,4251.4,0.6778]
[1754866794449,0.2772,4252.2,4252.1,1.15078]
[1754866795141,1.2851,4253.0,4252.9,0.47018]
[1754866795341,1.2851,4253.0,4252.5,0.4012]
[1754866795342,0.6042,4253.0,4252.5,0.4012]
[1754866795544,0.6287,4252.6,4252.5,1.15073]
[1754866795847,1.5621,4252.9,4252.8,0.47019]
[1754866796452,0.6042,4252.7,4252.6,0.47022]
[1754866796740,1.5621,4252.7,4252.6,0.47022]
[1754866798851,1.5621,4252.7,4252.4,0.47024]
[1754866799045,1.2849,4252.5,4251.6,0.4012]
[1754866799346,0.6042,4252.2,4252.1,0.47027]
[1754866799547,1.17521,4253.9,4251.4,1.17588]
[1754866799548,34.1692,4254.0,4251.6,0.4012]
[1754866799847,34.1692,4254.0,4253.2,0.47015]
[1754866799848,0.2772,4253.5,4253.2,0.47015]
[1754866800038,0.7125,4253.5,4253.4,0.74943]
[1754866800444,0.7125,4253.5,4253.4,1.15063]
[1754866800745,1.5621,4253.5,4253.4,0.6805]
[1754866801247,0.46995,4255.1,4253.9,0.4012]
[1754866801457,0.46995,4255.1,4253.3,1.17537]
[1754866801458,0.4699,4255.6,4255.0,0.4012]
[1754866801750,0.4699,4255.6,4252.9,1.00347346]
[1754866801751,0.2772,4254.4,4253.4,0.4012]
[1754866801953,0.277,4253.6,4252.0,1.2469945]
[1754866802243,24.00812,4254.3,4252.9,0.4012]
[1754866802244,22.833,4254.3,4252.9,0.4012]
[1754866802446,0.6807,4253.8,4252.4,0.47024]
[1754866802644,0.6807,4253.6,4252.7,0.4012]
[1754866802838,0.6807,4253.4,4252.7,0.4012]
[1754866803041,0.4037,4253.2,4251.9,0.47029]
[1754866803248,0.9579,4252.5,4252.0,0.4012]
[1754866803444,0.9579,4252.2,4251.5,0.4012]
[1754866803652,0.4037,4251.8,4250.9,0.4012]
[1754866803843,0.5542,4252.1,4250.9,0.4012]
[1754866804051,1.00347346,4252.4,4250.9,0.4012]
[1754866804052,0.9579,4251.9,4250.9,0.4012]
[1754866804360,0.4703,4252.0,4250.6,1.6481945]
[1754866804651,0.2772,4252.7,4252.1,0.4012]
[1754866804845,0.2772,4253.1,4252.4,0.87145]
[1754866805045,0.4702,4252.9,4252.0,0.47029]
[1754866805254,0.4702,4252.9,4251.7,1.2469945]
[1754866805255,0.74721,4252.7,4252.1,0.4012]
[1754866805549,0.5542,4252.4,4251.8,0.87151]
[1754866805758,0.5289,4252.8,4252.2,0.47027]
[1754866805959,0.2623,4252.8,4252.3,0.3894]
[1754866806254,0.99906,4253.2,4252.3,0.3894]
[1754866806454,0.99906,4253.2,4252.4,0.47024]
[1754866806648,0.99906,4253.2,4252.3,0.3894]
[1754866806649,0.5289,4253.2,4252.5,0.3894]